bitfinex/quotes_ETHUSD_20260216
["timestamp","ask_amount","ask_price","bid_price","bid_amount"]
[1771240885053,0.915,1966.8,1965.1,0.44508725]
[1771240885458,2.1861023,1966.8,1965.1,0.44508725]
[1771240885861,0.915,1966.8,1965.1,0.44508725]
[1771240886663,0.49444669,1966.7,1965.1,0.44508725]
[1771240887064,0.49444669,1966.3,1964.5,0.45628725]
[1771240887768,0.49444669,1966.1,1964.5,0.45628725]
[1771240888071,0.49444669,1965.4,1964.0,0.92181473]
[1771240888438,0.49444669,1965.4,1964.0,1.37810198]
[1771240888640,0.49444669,1965.3,1964.0,0.92181473]
[1771240889848,0.49444669,1964.7,1962.8,0.45628725]
[1771240890244,0.49444669,1964.6,1962.8,0.45628725]
[1771240890680,1.76703513,1964.5,1962.8,0.45628725]
[1771240890850,1.168,1964.7,1963.1,0.45628725]
[1771240891179,1.66244669,1964.7,1963.1,0.45628725]
[1771240891480,0.49444669,1964.6,1963.1,0.45628725]
[1771240891686,0.49444669,1964.6,1964.1,0.0011]
[1771240892392,0.49444669,1964.6,1964.0,0.0011]
[1771240892555,1.76703513,1964.5,1963.8,0.0011]
[1771240892755,0.49444669,1964.5,1963.8,0.0011]
[1771240892976,1.168,1964.7,1963.8,0.0011]
[1771240893146,0.49444669,1964.6,1963.8,0.0011]
[1771240893688,2.44048347,1964.7,1963.8,0.0011]
[1771240893689,1.168,1964.7,1963.8,0.0011]
[1771240895082,0.916,1964.8,1963.8,0.45738725]
[1771240898098,1.168,1965.3,1963.8,0.45738725]
[1771240898459,2.44007181,1965.3,1963.8,0.45738725]
[1771240899185,0.49444669,1965.1,1963.8,0.45738725]
[1771240899552,2.44007181,1965.3,1963.8,0.45738725]
[1771240899553,2.44008101,1965.3,1963.8,0.45738725]
[1771240900061,1.76646594,1965.4,1963.8,0.45738725]
[1771240900257,1.76624668,1965.8,1963.9,0.45628725]
[1771240900998,2.1897329,1965.9,1964.1,0.45628725]
[1771240901159,0.49444669,1965.8,1964.1,0.45628725]
[1771240902967,1.27181156,1965.7,1964.1,0.45628725]
[1771240903165,5.58153311,1965.8,1964.1,0.45628725]
[1771240903166,1.76619543,1965.8,1964.1,0.45628725]
[1771240903371,2.18969108,1965.9,1964.3,0.45628725]
[1771240903571,2.68413777,1965.9,1964.3,0.45628725]
[1771240904086,0.49067289,1965.8,1964.3,0.45628725]
[1771240904906,0.001,1965.2,1964.3,0.45628725]
[1771240906581,0.001,1965.2,1964.0,0.4944882]
[1771240906776,0.49167289,1965.2,1964.0,0.4944882]
[1771240907906,1.76381644,1965.2,1964.0,0.4944882]
[1771240908064,0.48721133,1965.1,1963.9,0.0011]
[1771240908461,0.48721133,1965.1,1963.9,0.47789202]
[1771240909561,1.7594465,1965.1,1963.9,0.47789202]
[1771240909806,0.48721133,1965.0,1963.9,0.0011]
[1771240911617,0.48721133,1964.8,1963.9,0.0011]
[1771240912296,0.48721133,1964.7,1963.1,0.47679202]
[1771240912872,0.48721133,1964.7,1962.5,0.47679202]
[1771240913109,0.48721133,1964.6,1962.7,0.47679202]
[1771240913907,0.48721133,1964.4,1962.7,0.47679202]
[1771240914212,1.27258844,1964.5,1962.7,0.47679202]
[1771240914213,0.48721133,1964.2,1962.7,0.47679202]
[1771240916182,0.48721133,1964.0,1962.7,0.47679202]
[1771240916388,0.48721133,1964.0,1962.8,0.0011]
[1771240917120,1.27284761,1964.1,1961.9,0.1324192]
[1771240917121,0.48721133,1963.6,1961.9,0.1324192]
[1771240917407,2.012839,1963.1,1961.9,0.1324192]
[1771240917567,0.48721133,1962.8,1961.1,0.63912953]
[1771240917772,0.48721133,1962.6,1961.1,1.11592155]
[1771240918004,0.48721133,1962.6,1960.5,14.06757801]
[1771240918005,1.166,1962.8,1961.0,0.47679202]
[1771240918303,6.237455,1962.5,1961.0,0.47679202]
[1771240918477,0.48721133,1962.5,1961.0,0.47679202]
[1771240918899,5.09502216,1962.8,1961.0,0.47679202]
[1771240918900,1.76094835,1962.8,1961.0,0.47679202]
[1771240919105,1.76094835,1962.8,1961.4,0.47679202]
[1771240919313,1.76094835,1962.8,1961.1,0.47679202]
[1771240919314,0.48721133,1962.7,1961.1,0.47679202]
[1771240920304,1.76103177,1962.6,1961.1,0.47679202]
[1771240920480,12.696741,1962.4,1961.1,0.46179202]
[1771240920675,0.48721133,1962.4,1960.8,0.47679202]
[1771240920911,30.0,1961.9,1960.2,0.47679202]
[1771240921215,0.48721133,1961.7,1959.9,8.9670084]
[1771240921414,0.48721133,1961.5,1959.9,9.40880042]
[1771240921580,0.48721133,1961.5,1959.5,0.521]
[1771240921581,0.48721133,1961.5,1960.1,9.44380042]
[1771240921776,2.57321133,1961.8,1960.2,0.47679202]
[1771240922322,0.18685624,1962.5,1961.0,0.47679202]
[1771240922323,5.09583962,1962.4,1961.0,0.47679202]
[1771240922609,2.44282747,1962.6,1961.0,0.47679202]
[1771240922974,1.169,1962.6,1961.4,0.47679202]
[1771240923174,0.48721133,1962.5,1960.4,0.32592332]
[1771240923378,0.48721133,1962.5,1961.3,8.9670084]
[1771240924023,1.169,1962.6,1961.3,9.44380042]
[1771240924316,0.918,1962.8,1961.7,8.9670084]
[1771240924474,0.918,1962.8,1961.7,9.44380042]
[1771240924676,0.918,1962.8,1961.7,0.47679202]
[1771240924913,2.19169904,1962.8,1961.7,0.47679202]
[1771240925211,0.918,1962.8,1961.4,0.47679202]
[1771240925876,2.67890366,1962.8,1961.4,0.47679202]
[1771240926104,1.76097068,1962.7,1961.2,0.47679202]
[1771240926406,0.48721133,1962.6,1961.2,0.47679202]
[1771240926595,2.19173561,1962.8,1961.2,0.47679202]
[1771240927318,0.918,1962.8,1961.2,0.47679202]
[1771240927492,0.918,1962.8,1961.5,8.9670084]
[1771240927900,0.918,1962.8,1961.5,9.44380042]
[1771240928510,0.48721133,1962.7,1961.3,0.0011]
[1771240929679,0.48721133,1962.5,1961.3,0.0011]
[1771240930092,0.48241133,1962.5,1961.3,0.0011]
[1771240930294,0.48721133,1962.3,1961.3,0.0011]
[1771240931178,0.48561133,1962.3,1961.3,0.0011]
[1771240932009,1.171,1962.4,1961.3,0.0011]
[1771240932507,1.171,1962.4,1961.3,0.47789202]
[1771240932711,2.44495184,1962.4,1961.3,0.47789202]
[1771240932915,2.44495184,1962.4,1961.3,0.0011]
[1771240933209,1.171,1962.4,1961.3,0.0011]
[1771240933412,2.44495644,1962.4,1961.3,0.0011]
[1771240933597,1.171,1962.4,1961.3,0.0011]
[1771240934484,1.171,1962.4,1961.3,0.47144921]
[1771240934901,1.171,1962.4,1961.3,0.0011]
[1771240935909,1.171,1962.4,1961.4,8.9670084]
[1771240936215,2.44496933,1962.4,1961.3,0.47144921]
[1771240936385,1.171,1962.4,1961.4,9.43735761]
[1771240937100,1.171,1962.4,1961.3,0.0011]
[1771240937693,2.44498021,1962.4,1961.3,0.0011]
[1771240938086,0.45087204,1962.3,1961.3,0.0011]
[1771240938530,1.72495215,1962.2,1961.3,0.0011]
[1771240938831,0.45087204,1962.1,1961.2,0.0006]
[1771240940225,1.2740636,1962.3,1961.2,0.0006]
[1771240940398,1.72486625,1962.4,1961.2,0.0006]
[1771240941115,1.72486625,1962.4,1961.3,0.0011]
[1771240941484,0.45087204,1962.3,1961.3,0.0011]
[1771240941897,1.27399421,1962.4,1961.3,0.0011]
[1771240942129,0.45087204,1962.3,1961.3,0.0011]
[1771240942583,1.27408011,1962.2,1961.3,0.0011]
[1771240944693,1.72495215,1962.2,1961.3,0.0011]
[1771240946590,0.45087204,1962.1,1961.3,0.0011]
[1771240947296,1.27408011,1962.2,1961.3,0.0011]
[1771240948099,1.72495215,1962.2,1961.3,0.0011]
[1771240948302,0.45087204,1962.1,1961.3,0.0011]
[1771240948607,0.45087204,1961.9,1961.3,0.0011]
[1771240949600,1.27420998,1962.0,1961.2,0.0006]
[1771240949601,0.45087204,1961.7,1961.2,0.0006]
[1771240950743,1.27446982,1961.6,1961.2,0.0006]
[1771240950902,0.45087204,1961.5,1961.2,0.0006]
[1771240951096,0.45087204,1961.5,1961.0,0.0011]
[1771240951317,0.45087204,1961.4,1961.0,0.0011]
[1771240952225,0.918,1961.5,1961.0,0.0011]
[1771240952729,1.72547181,1961.4,1960.0,0.47034921]
[1771240953023,0.45087204,1961.3,1960.0,0.47034921]
[1771240953444,0.45087204,1961.3,1961.2,0.0011]
[1771240953800,0.45087204,1961.3,1960.0,0.47034921]
[1771240953995,0.45087204,1961.3,1959.7,0.47034921]
[1771240954731,1.72560179,1961.2,1959.7,0.47034921]
[1771240954901,2.89660179,1961.2,1959.7,0.47034921]
[1771240955431,1.62187204,1961.2,1959.7,0.47034921]
[1771240955726,0.45087204,1961.1,1959.7,0.47034921]
[1771240955927,0.45087204,1961.1,1959.4,0.47034921]
[1771240956301,0.45087204,1960.9,1959.4,0.47034921]
[1771240956619,0.45087204,1960.7,1958.3,0.47034921]
[1771240956818,1.27524994,1960.4,1958.8,0.47034921]
[1771240957026,2.19415897,1960.6,1959.2,0.47034921]
[1771240957599,0.919,1960.6,1959.2,0.47034921]
[1771240957833,2.19414613,1960.6,1959.2,0.47034921]
[1771240958127,2.1941233,1960.6,1959.2,0.47034921]
[1771240958499,2.1941233,1960.6,1958.5,0.32592332]
[1771240958500,0.45087204,1960.5,1958.9,0.47034921]
[1771240958706,1.62187204,1960.4,1958.9,0.47034921]
[1771240958927,2.44627052,1960.4,1958.9,0.47034921]
[1771240959132,2.4462516,1960.4,1959.3,0.47034921]
[1771240959438,0.45087204,1960.3,1958.9,0.47034921]
[1771240960535,2.89712364,1960.4,1958.9,0.47034921]
[1771240960749,0.45087204,1960.3,1958.9,0.47034921]
[1771240960906,1.72624536,1960.3,1958.9,0.47034921]
[1771240961305,0.45087204,1960.3,1958.9,0.47034921]
[1771240961608,1.72620779,1960.3,1958.9,0.47034921]
[1771240961937,1.72620779,1960.3,1958.9,0.45754921]
[1771240962138,6.27200137,1960.4,1958.9,0.45754921]
[1771240962139,1.171,1960.4,1958.9,0.45754921]
[1771240962338,1.171,1960.4,1958.8,9.75230172]
[1771240962339,1.171,1960.4,1959.4,0.47034921]
[1771240962513,2.44625066,1960.4,1959.4,0.47034921]
[1771240962717,1.171,1960.4,1959.4,0.47034921]
[1771240963710,0.919,1960.6,1959.4,0.47034921]
[1771240963922,0.45087204,1961.0,1959.4,0.47034921]
[1771240964138,2.89477255,1961.0,1959.4,0.47034921]
[1771240964335,1.169,1961.0,1959.4,0.47034921]
[1771240964831,1.169,1961.0,1959.8,0.4518526]
[1771240965199,0.92,1961.1,1959.8,0.4518526]
[1771240965701,2.19480482,1961.1,1959.8,0.4518526]
[1771240965904,2.64999913,1961.1,1959.8,0.4518526]
[1771240966343,0.45519431,1961.0,1959.5,0.4529526]
[1771240966555,2.19481071,1961.1,1959.8,0.4518526]
[1771240966710,0.92,1961.1,1959.8,0.4518526]
[1771240968326,0.92,1961.1,1960.1,9.75230172]
[1771240968526,0.92,1961.1,1960.2,0.46665797]
[1771240968946,1.169,1961.7,1960.6,0.46665797]
[1771240969158,2.68911379,1962.0,1960.6,0.46665797]
[1771240969159,0.919,1962.0,1960.6,0.46665797]
[1771240969761,2.68912914,1962.0,1960.6,0.46665797]
[1771240969930,0.919,1962.0,1960.6,0.46665797]
[1771240970853,0.919,1962.0,1960.7,0.46665797]
[1771240972674,0.919,1962.0,1960.6,0.967]
[1771240972675,0.49589962,1961.9,1960.6,0.967]
[1771240973033,1.77023951,1961.8,1960.4,0.46665797]
[1771240975074,1.77036944,1961.6,1960.3,0.966]
[1771240975258,1.77036944,1961.6,1960.4,0.46665797]
[1771240975259,0.49589962,1961.6,1960.4,0.46665797]
[1771240975447,1.27439105,1961.8,1960.4,0.46665797]
[1771240975637,1.77029067,1961.8,1960.4,0.46665797]
[1771240975953,0.49589962,1961.8,1960.4,0.46665797]
[1771240976455,0.49589962,1961.8,1960.1,0.46665797]
[1771240976860,0.49589962,1961.6,1960.1,0.46665797]
[1771240977161,0.49589962,1961.4,1960.1,0.46665797]
[1771240977368,0.49589962,1961.4,1960.4,0.0011]
[1771240979168,0.49589962,1961.2,1960.3,0.0011]
[1771240979365,0.49589962,1961.0,1960.3,0.0011]
[1771240981054,1.77082439,1960.9,1960.3,0.0011]
[1771240981287,0.49589962,1960.8,1960.3,0.0011]
[1771240981783,1.27491295,1961.0,1960.3,0.0011]
[1771240981988,2.19384841,1961.1,1960.3,0.0011]
[1771240982159,0.919,1961.1,1960.3,0.0011]
[1771240982362,2.19380854,1961.1,1960.3,0.0011]
[1771240982683,0.919,1961.1,1960.3,0.0011]
[1771240983097,0.49589962,1961.0,1960.3,0.0011]
[1771240985193,1.27492477,1960.9,1960.3,0.0011]
[1771240986002,2.43892477,1960.9,1960.3,0.0011]
[1771240986494,1.164,1960.9,1960.3,0.0011]
[1771240986694,0.49589962,1961.3,1960.3,0.0011]
[1771240986695,1.164,1961.2,1960.3,0.0011]
[1771240987394,2.93463307,1961.2,1960.3,0.0011]
[1771240987899,2.43874582,1961.2,1960.3,0.0011]
[1771240988282,1.164,1961.2,1960.3,0.0011]
[1771240988609,1.164,1961.2,1960.3,0.46775797]
[1771240989810,1.164,1961.2,1960.4,0.0011]
[1771240990009,1.164,1961.2,1960.4,0.46775797]
[1771240990212,0.001,1960.8,1960.4,0.0011]
[1771240993304,0.001,1960.8,1960.4,0.46775797]
[1771240994083,2.86535451,1961.7,1960.4,0.46775797]
[1771240995293,0.46027003,1961.6,1960.4,0.0011]
[1771240997737,1.73480482,1961.5,1960.4,0.0011]
[1771240998016,1.73480482,1961.5,1960.4,0.49189041]
[1771240998590,0.46027003,1961.4,1960.4,0.49189041]
[1771240999587,0.46027003,1961.2,1960.3,0.0011]
[1771241001458,0.46027003,1961.2,1960.4,0.0011]
[1771241001615,2.43181222,1961.1,1960.4,0.0011]
[1771241004134,5.55920277,1961.2,1960.4,0.0011]
[1771241004135,1.27468984,1961.3,1960.4,0.0011]
[1771241004435,1.157,1961.2,1960.4,0.0011]
[1771241005139,0.46027003,1961.1,1960.1,0.0011]
[1771241005748,0.46027003,1961.1,1960.1,0.49189041]
[1771241005951,1.27480842,1961.1,1960.1,0.49189041]
[1771241006256,6.25592108,1961.2,1960.1,0.49189041]
[1771241006257,2.43173986,1961.2,1960.1,0.49189041]
[1771241006555,2.89200989,1961.2,1960.1,0.49189041]
[1771241006945,0.46027003,1961.1,1960.1,0.0011]
[1771241008655,0.46027003,1960.9,1960.1,0.0011]
[1771241009830,1.27485976,1961.0,1960.1,0.0011]
[1771241010564,5.09943906,1961.1,1960.1,0.49189041]
[1771241011343,1.27479475,1961.1,1960.1,0.49189041]
[1771241012031,1.73501704,1961.2,1960.1,0.49189041]
[1771241012247,2.89001704,1961.2,1960.1,0.49189041]
[1771241012955,1.61527003,1961.2,1960.1,0.49189041]
[1771241013147,1.155,1961.2,1960.1,0.49189041]
[1771241013343,1.155,1961.2,1960.3,0.49079041]
[1771241013560,0.001,1961.1,1960.3,0.49079041]
[1771241017635,0.001,1961.4,1960.5,9.0064696]
[1771241017847,0.001,1961.4,1960.6,0.49079041]
[1771241018752,0.001,1961.9,1961.0,0.49079041]
[1771241023448,0.001,1962.6,1960.3,0.49079041]
[1771241023652,0.371,1963.0,1962.4,1.53565382]
[1771241023849,0.371,1963.0,1961.3,11.12426706]
[1771241023850,0.26565681,1963.4,1962.3,9.48159214]
[1771241024075,0.45488645,1963.7,1962.4,0.47512254]
[1771241024277,1.27310829,1963.7,1962.4,0.47512254]
[1771241024580,0.45488645,1963.6,1962.4,0.47512254]
[1771241024779,1.197,1964.2,1962.8,0.47512254]
[1771241025147,0.919,1964.3,1963.2,0.47512254]
[1771241025350,0.919,1964.3,1963.5,9.48159214]
[1771241025545,0.919,1964.3,1963.2,0.47512254]
[1771241026956,0.001,1963.6,1963.2,0.47512254]
[1771241027190,0.919,1964.3,1963.2,0.47512254]
[1771241034772,0.919,1964.3,1963.5,9.0064696]
[1771241034977,0.919,1964.3,1963.4,0.45452363]
[1771241035597,0.918,1964.6,1963.4,0.45452363]
[1771241035998,0.47750811,1964.5,1963.4,0.45452363]
[1771241036815,0.47750811,1964.5,1963.5,9.0064696]
[1771241037020,0.47750811,1964.5,1963.4,0.45452363]
[1771241038137,1.75019918,1964.4,1963.2,0.45452363]
[1771241038321,1.75019918,1964.4,1962.7,0.978]
[1771241038322,0.47750811,1964.3,1962.7,9.0064696]
[1771241038494,0.47750811,1964.3,1962.8,0.45452363]
[1771241038698,0.47750811,1964.1,1962.7,9.0064696]
[1771241039001,0.47750811,1963.9,1963.3,0.0011]
[1771241039839,0.47850811,1964.2,1963.3,0.0011]
[1771241040035,0.47750811,1964.1,1963.3,0.0011]
[1771241040214,1.27291242,1964.0,1963.3,0.0011]
[1771241040412,1.75042053,1964.0,1963.3,0.0011]
[1771241040722,0.47750811,1964.0,1963.3,0.0011]
[1771241041631,0.001,1964.2,1963.3,9.46209323]
[1771241041835,0.919,1964.2,1963.3,9.46209323]
[1771241042008,0.001,1964.2,1963.3,9.46209323]
[1771241042552,0.001,1964.2,1963.3,9.0075696]
[1771241042735,0.001,1964.2,1963.4,0.45452363]
[1771241044240,0.47750811,1964.6,1963.4,0.45452363]
[1771241044407,1.39550811,1964.6,1963.4,0.45452363]
[1771241045120,1.65850811,1964.6,1963.4,0.45452363]
[1771241045305,2.57650811,1964.6,1963.4,0.45452363]
[1771241045506,3.84904081,1964.6,1963.4,0.45452363]
[1771241045703,0.47750811,1964.5,1963.4,0.45452363]
[1771241046148,2.099,1964.6,1963.4,0.45452363]
[1771241046511,3.37153216,1964.6,1963.4,0.45452363]
[1771241046730,0.47750811,1964.5,1963.4,0.45452363]
[1771241047436,0.47750811,1964.5,1963.3,9.0075696]
[1771241047614,0.47750811,1964.5,1963.3,0.0011]
[1771241048244,2.57450811,1964.4,1963.3,0.0011]
[1771241048603,1.75022612,1964.3,1963.3,0.0011]
[1771241048809,0.47750811,1964.2,1963.3,0.0011]
[1771241051240,1.75032604,1964.2,1963.3,0.0011]
[1771241051569,1.75032604,1964.2,1963.4,0.0011]
[1771241052373,0.47750811,1964.1,1963.4,0.0011]
[1771241053074,1.75040513,1964.1,1963.4,0.0011]
[1771241053244,1.75020789,1964.4,1963.4,0.0011]
[1771241053560,1.176,1964.2,1963.4,0.0011]
[1771241054545,1.75020789,1964.4,1963.4,0.45649134]
[1771241054742,2.093,1964.3,1963.4,0.45649134]
[1771241054949,1.75020789,1964.4,1963.4,0.45649134]
[1771241055150,2.44772269,1964.3,1963.4,0.45649134]
[1771241056863,1.76137496,1964.4,1963.4,0.45649134]
[1771241057069,2.4457299,1964.3,1963.4,0.45649134]
[1771241057269,1.173,1964.3,1963.4,0.45649134]
[1771241057474,2.44571999,1964.3,1963.4,0.45649134]
[1771241057670,1.173,1964.3,1963.4,0.45649134]
[1771241058663,1.172,1964.3,1963.4,0.45649134]
[1771241061292,1.169,1964.4,1963.4,0.45649134]
[1771241061999,0.001,1964.5,1963.4,0.45649134]
[1771241063584,0.001,1964.5,1963.5,0.45539134]
[1771241063764,0.001,1964.5,1963.8,0.45539134]
[1771241068190,0.001,1964.5,1963.6,0.45539134]
[1771241068390,0.48971222,1964.5,1963.6,0.45539134]
[1771241069317,0.48971222,1964.5,1963.5,0.0011]
[1771241069697,0.48871222,1964.3,1963.5,0.0011]
[1771241072127,1.76147324,1964.3,1963.5,0.0011]
[1771241073121,0.48871222,1964.2,1963.5,0.0011]
[1771241073326,5.09082405,1964.4,1963.5,0.0011]
[1771241073529,1.76136544,1964.4,1963.5,0.45649134]
[1771241073702,2.077,1964.3,1963.5,0.45649134]
[1771241073901,3.83844656,1964.3,1963.5,0.45649134]
[1771241074729,0.48871222,1964.2,1963.5,0.0011]
[1771241076009,1.27284761,1964.1,1963.5,0.0011]
[1771241076535,0.48871222,1964.0,1963.5,0.0011]
[1771241078204,0.48871222,1963.8,1963.5,0.0011]
[1771241079237,0.48871222,1963.8,1963.3,0.0011]
[1771241080225,0.48871222,1963.6,1963.3,0.0011]
[1771241080407,1.159,1963.5,1963.3,0.0011]
[1771241080616,0.25826143,1963.5,1963.3,0.0011]
[1771241080821,0.74697365,1963.5,1963.3,0.0011]
[1771241081223,0.48871222,1963.3,1963.1,0.0011]
[1771241082232,1.27343113,1963.2,1963.1,0.0011]
[1771241082934,0.48871222,1963.1,1962.0,0.45539134]
[1771241083632,1.16,1963.0,1962.2,0.45539134]
[1771241083934,0.495538,1963.6,1962.3,0.45694658]
[1771241084173,1.16,1963.5,1962.4,0.45694658]
[1771241084431,1.16,1963.5,1962.4,0.46134658]
[1771241084609,1.27303018,1963.9,1962.4,0.46134658]
[1771241084810,2.572538,1963.8,1962.4,0.46134658]
[1771241085138,1.159,1963.7,1962.4,0.46134658]
[1771241087142,1.27298178,1963.9,1962.4,0.46134658]
[1771241087306,0.639,1963.7,1962.4,0.46134658]
[1771241087516,1.76848273,1964.0,1962.6,0.48203826]
[1771241087712,0.495538,1964.0,1962.8,0.48203826]
[1771241088035,1.156,1963.9,1962.8,0.48203826]
[1771241089240,2.42898044,1963.9,1962.8,0.48203826]
[1771241089418,1.156,1963.9,1962.8,0.48203826]
[1771241089620,0.46498137,1963.8,1962.9,0.0044]
[1771241090151,0.46498137,1963.8,1962.9,0.48643826]
[1771241090324,1.156,1963.9,1962.9,0.48643826]
[1771241091140,2.42897887,1963.9,1962.9,0.48643826]
[1771241091443,1.156,1963.9,1962.9,0.48643826]
[1771241093744,0.001,1964.1,1963.2,0.48203826]
[1771241093943,1.154,1964.1,1963.2,0.48203826]
[1771241094449,0.46498137,1964.0,1963.3,0.0044]
[1771241094740,0.46498137,1964.0,1963.0,0.48203826]
[1771241095110,1.7379586,1963.9,1963.0,0.48203826]
[1771241095911,0.46498137,1963.8,1963.1,0.0044]
[1771241096234,0.46498137,1963.8,1962.8,0.48203826]
[1771241097178,1.27297723,1963.9,1962.9,0.48643826]
[1771241097453,1.151,1963.8,1962.9,0.48203826]
[1771241097653,1.151,1963.8,1963.0,0.48643826]
[1771241097826,1.151,1963.8,1963.0,0.48203826]
[1771241098026,1.151,1963.8,1963.1,0.0044]
[1771241098027,1.61598137,1963.8,1963.1,0.0044]
[1771241098231,1.151,1963.8,1962.9,0.48643826]
[1771241098425,1.151,1963.8,1962.9,0.48203826]
[1771241098607,1.151,1963.8,1963.0,0.48643826]
[1771241098815,1.151,1963.8,1963.0,0.48203826]
[1771241099151,1.15,1963.7,1963.0,0.48203826]
[1771241099385,1.15,1963.7,1963.1,0.0044]
[1771241100784,0.46498137,1963.6,1963.1,0.0044]
[1771241101184,1.73821793,1963.5,1962.6,0.48203826]
[1771241101503,0.46498137,1963.5,1963.0,0.0011]
[1771241102080,1.27322229,1963.6,1963.1,0.0044]
[1771241102286,0.001,1963.8,1963.1,0.48643826]
[1771241102498,1.148,1963.8,1963.1,0.48643826]
[1771241103276,0.001,1963.8,1963.1,0.48643826]
[1771241106528,0.001,1963.8,1963.2,0.0044]
[1771241106725,0.001,1963.8,1963.2,0.48643826]
[1771241108622,0.001,1963.8,1963.3,0.48643826]
[1771241108807,0.001,1963.8,1963.3,0.48203826]
[1771241109006,0.001,1963.8,1963.4,0.48643826]
[1771241109327,0.001,1963.8,1963.4,0.48203826]
[1771241109490,0.001,1963.8,1963.5,0.0044]
[1771241109921,0.001,1964.1,1963.5,0.0044]
[1771241110110,0.001,1964.1,1963.5,0.48643826]
[1771241110699,0.001,1964.1,1963.5,0.0044]
[1771241115011,0.001,1964.0,1963.5,0.0044]
[1771241116805,0.4641516,1964.0,1963.5,0.0044]
[1771241117217,0.001,1964.0,1963.5,0.0044]
[1771241117419,0.001,1964.0,1963.3,0.45360298]
[1771241118042,0.001,1964.0,1963.4,0.45800298]
[1771241118239,0.001,1964.0,1963.4,0.45360298]
[1771241118417,0.001,1964.0,1963.5,0.0044]
[1771241118939,0.001,1964.0,1963.4,0.45360298]
[1771241119152,0.001,1964.0,1963.6,0.0044]
[1771241123935,0.001,1964.0,1963.6,0.45800298]
[1771241124257,0.001,1964.0,1963.6,0.0044]
[1771241125443,0.001,1964.0,1963.7,0.0044]
[1771241125664,0.001,1964.0,1963.3,0.45800298]
[1771241127543,0.001,1964.3,1963.5,0.45360298]
[1771241127738,0.001,1964.3,1963.7,0.45360298]
[1771241128056,0.001,1963.9,1963.6,0.0044]
[1771241131951,0.001,1963.9,1963.5,0.45360298]
[1771241132261,0.001,1963.9,1963.6,0.0044]
[1771241136575,0.4641516,1963.9,1963.7,0.0044]
[1771241136759,0.4641516,1963.9,1963.5,0.0044]
[1771241136961,0.001,1963.9,1963.5,0.0044]
[1771241137146,0.001,1963.9,1963.6,0.0044]
[1771241137468,0.001,1963.9,1963.5,0.0044]
[1771241137974,0.001,1963.9,1963.6,0.0044]
[1771241138163,0.001,1963.9,1963.5,0.0044]
[1771241138464,0.001,1963.9,1963.4,0.0011]
[1771241138671,0.001,1963.9,1963.5,0.0044]
[1771241138968,0.001,1963.9,1963.6,0.0044]
[1771241139270,0.001,1963.9,1963.5,0.0044]
[1771241139662,0.001,1963.9,1963.6,0.0055]
[1771241139877,0.001,1963.9,1963.6,0.0011]
[1771241140176,0.001,1963.9,1963.7,0.0044]
[1771241143381,0.001,1964.0,1963.8,0.0044]
[1771241143582,0.001,1964.0,1963.7,0.0044]
[1771241144379,0.001,1964.3,1963.8,0.0044]
[1771241144581,0.48593353,1964.5,1963.8,0.49633261]
[1771241144582,0.001,1964.5,1963.8,0.49633261]
[1771241144783,0.001,1964.5,1964.0,0.49633261]
[1771241145084,0.48593353,1964.9,1964.1,0.50073261]
[1771241145377,1.60993353,1964.9,1964.2,0.0044]
[1771241145549,0.48593353,1964.9,1964.2,0.0044]
[1771241145752,0.001,1964.9,1964.3,0.0044]
[1771241145978,0.001,1964.9,1964.2,0.50073261]
[1771241146265,0.001,1964.9,1964.2,0.49633261]
[1771241146460,0.001,1964.9,1964.3,0.0044]
[1771241146667,0.001,1964.9,1964.3,0.50073261]
[1771241146885,0.001,1964.9,1964.4,0.50073261]
[1771241147183,0.001,1964.9,1964.4,0.49633261]
[1771241147483,0.001,1964.9,1964.5,0.0044]
[1771241147653,0.001,1964.9,1964.1,0.45775817]
[1771241148852,0.001,1964.9,1964.3,0.45775817]
[1771241149051,0.47674297,1965.2,1964.4,0.45775817]
[1771241149052,0.001,1965.2,1964.4,0.45775817]
[1771241149253,0.001,1965.2,1964.4,0.0044]
[1771241149254,0.47574297,1965.1,1964.4,0.0044]
[1771241149478,1.27226463,1965.0,1964.4,0.0044]
[1771241149684,0.47574297,1964.9,1964.5,0.0044]
[1771241150282,0.47574297,1965.0,1964.5,0.0044]
[1771241150476,0.47574297,1965.0,1964.6,0.0044]
[1771241150677,0.47574297,1965.0,1964.2,0.46215817]
[1771241150878,0.47574297,1965.0,1964.2,0.45775817]
[1771241151079,0.47574297,1965.0,1964.3,0.0044]
[1771241151486,0.001,1965.2,1964.3,0.46215817]
[1771241151660,0.001,1965.2,1964.6,0.45775817]
[1771241151976,1.59674297,1965.6,1964.6,0.45775817]
[1771241152179,1.59674297,1965.6,1964.7,0.46215817]
[1771241152904,0.47674297,1965.9,1965.0,9.43251145]
[1771241153109,1.74844123,1965.9,1965.0,9.43251145]
[1771241153294,0.47674297,1965.9,1965.0,9.43251145]
[1771241153495,0.47674297,1965.9,1965.1,0.46215817]
[1771241153892,0.001,1965.9,1965.1,0.46215817]
[1771241154267,0.47674297,1965.9,1965.1,0.0044]
[1771241154473,0.47674297,1965.9,1965.1,0.46215817]
[1771241154667,0.001,1965.9,1965.1,0.46215817]
[1771241154999,0.47574297,1965.8,1965.1,0.0044]
[1771241155200,0.001,1965.9,1965.1,0.46215817]
[1771241155378,0.47674297,1965.9,1965.2,0.0044]
[1771241155598,0.47574297,1965.8,1965.2,0.0044]
[1771241155799,1.27268567,1965.9,1965.2,0.0044]
[1771241155996,0.47674297,1965.9,1965.2,0.0044]
[1771241157100,0.47574297,1965.8,1965.2,0.0044]
[1771241158098,2.86549904,1965.8,1965.2,0.0044]
[1771241158298,0.47574297,1965.7,1965.2,0.0044]
[1771241158830,0.47574297,1965.7,1964.5,0.45775817]
[1771241159031,0.47574297,1965.7,1964.7,0.0044]
[1771241159993,0.47574297,1965.5,1964.7,0.0044]
[1771241162018,1.118,1965.7,1964.9,0.45775817]
[1771241162460,1.59374297,1965.7,1965.0,0.0044]
[1771241162615,1.59374297,1965.7,1964.7,0.45775817]
[1771241162953,1.59374297,1965.7,1964.8,0.0044]
[1771241163549,0.47574297,1965.6,1964.8,0.0044]
[1771241164227,1.74768395,1965.5,1964.8,0.0044]
[1771241164434,0.47574297,1965.5,1964.8,0.0044]